[Event "ARM-ch Rapid 2019"]
[Site "Yerevan"]
[Date "2019.01.23"]
[Round "8.10"]
[White "Gharagyozyan, Artur"]
[Black "Nadanian, Ashot"]
[Result "0-1"]
[WhiteElo "2253"]
[BlackElo "2317"]
[PlyCount "60"]
[EventDate "2019.01.22"]
[EventType "tourn"]
[EventCountry "ARM"]
[TimeControl "40/5400+30:1800+30"]
[WhiteClock "0:02:26"]
[BlackClock "0:04:45"]

1. e4 {[%emt 1:15:16]} d5 {[%emt 1:15:15]} 2. exd5 {[%emt 0:00:22]} Qxd5 {[%emt 0:00:23]} 3. Nc3 {[%emt 0:00:30]} Qd6 {[%emt 0:00:39]} 4. d4 {[%emt 0:00:38]} Nf6 {[%emt 0:00:25]} 5. Bc4 {[%emt 0:00:52]} c6 {[%emt 0:00:32]} 6. Nf3 {[%emt 0:00:29]} Bg4 {[%emt 0:01:02]} 7. Be3 {[%emt 0:00:38]} e6 {[%emt 0:00:25]} 8. h3 {[%emt 0:00:22]} Bxf3 {[%emt 0:00:51]} 9. Qxf3 {[%emt 0:00:22]} Be7 {[%emt 0:00:23]} 10. g4 {[%emt 0:00:40]} Nd5 {[%emt 0:00:39]} 11. Bd2 {[%emt 0:01:08]} O-O {[%emt 0:01:34]} 12. Ne4 {[%emt 0:00:39]} Qc7 {[%emt 0:00:39]} 13. O-O-O {[%emt 0:01:04]} Nd7 {[%emt 0:01:29]} 14. g5 {[%emt 0:00:31]} a5 {[%emt 0:01:13]} 15. Rdg1 {[%emt 0:00:50]} Rfc8 {[%emt 0:00:56]} 16. h4 {[%emt 0:00:37]} c5 {[%emt 0:00:38]} 17. Bxd5 {[%emt 0:02:12]} cxd4 {[%emt 0:00:36]} 18. Bb3 {[%emt 0:01:48]} Ne5 {[%emt 0:00:26]} 19. Qh5 {[%emt 0:01:58]} a4 {[%emt 0:02:03]} 20. Nf6+ {[%emt 0:00:37]} Bxf6 {[%emt 0:00:23]} 21. gxf6 {[%emt 0:00:28]} axb3 {[%emt 0:05:17]} 22. Rxg7+ {[%emt 0:00:45]} Kf8 {[%emt 0:00:23]} 23. Bb4+ {[%emt 0:01:28]} Ke8 {[%emt 0:00:22]} 24. c3 {[%emt 0:01:33]} bxa2 {[%emt 0:01:15]} 25. Kd2 {[%emt 0:01:32]} dxc3+ {[%emt 0:01:23]} 26. bxc3 {[%emt 0:00:47]} Qd7+ {[%emt 0:00:56]} 27. Ke3 {[%emt 0:00:56]} Qd3+ {[%emt 0:00:52]} 28. Kf4 {[%emt 0:00:22]} Rc4+ {[%emt 0:00:22]} 29. Kg5 {[%emt 0:00:25]} Qd2+ {[%emt 0:00:22]} 30. f4 {[%emt 0:00:26]} Qxf4# {[%emt 0:00:51]} 0-1

[Event "ARM-ch Rapid 2019"]
[Site "Yerevan"]
[Date "2019.01.23"]
[Round "9.9"]
[White "Nadanian, Ashot"]
[Black "Sargsyan, Anna M."]
[Result "1-0"]
[WhiteElo "2317"]
[BlackElo "2339"]
[PlyCount "124"]
[EventDate "2019.01.22"]
[EventType "tourn"]
[EventCountry "ARM"]
[TimeControl "40/5400+30:1800+30"]
[WhiteClock "0:00:19"]
[BlackClock "0:00:43"]

1. e4 {[%emt 1:15:14]} c6 {[%emt 1:15:11]} 2. d4 {[%emt 0:00:22]} d5 {[%emt 0:00:22]} 3. Nd2 {[%emt 0:00:32]} dxe4 {[%emt 0:00:23]} 4. Nxe4 {[%emt 0:00:22]} Bf5 {[%emt 0:00:23]} 5. Bd3 {[%emt 0:00:50]} e6 {[%emt 0:01:27]} 6. Nf3 {[%emt 0:00:35]} Nd7 {[%emt 0:00:23]} 7. O-O {[%emt 0:00:27]} Bg6 {[%emt 0:00:37]} 8. Bf4 {[%emt 0:00:40]} Bxe4 {[%emt 0:00:30]} 9. Bxe4 {[%emt 0:00:22]} Ngf6 {[%emt 0:00:21]} 10. Bd3 {[%emt 0:00:22]} Be7 {[%emt 0:00:25]} 11. c3 {[%emt 0:00:41]} O-O {[%emt 0:00:27]} 12. Qe2 {[%emt 0:00:22]} c5 {[%emt 0:00:56]} 13. dxc5 {[%emt 0:00:30]} Nxc5 {[%emt 0:00:26]} 14. Bc2 {[%emt 0:00:22]} Qb6 {[%emt 0:00:35]} 15. Ne5 {[%emt 0:00:33]} Rad8 {[%emt 0:00:57]} 16. Rfe1 {[%emt 0:01:15]} Nd5 {[%emt 0:02:22]} 17. Bg3 {[%emt 0:00:27]} g6 {[%emt 0:00:37]} 18. Nc4 {[%emt 0:01:47]} Qa6 {[%emt 0:00:43]} 19. a4 {[%emt 0:00:29]} Bf6 {[%emt 0:03:06]} 20. a5 {[%emt 0:01:32]} Qb5 {[%emt 0:01:05]} 21. h4 {[%emt 0:02:17]} h5 {[%emt 0:01:43]} 22. Qf1 {[%emt 0:01:52]} Qd7 {[%emt 0:01:23]} 23. Ne5 {[%emt 0:01:38]} Qe7 {[%emt 0:00:42]} 24. Qc4 {[%emt 0:01:12]} Rc8 {[%emt 0:00:46]} 25. Nf3 {[%emt 0:00:28]} Kg7 {[%emt 0:00:57]} 26. Rad1 {[%emt 0:00:37]} Rfd8 {[%emt 0:00:24]} 27. Qe2 {[%emt 0:01:09]} Kg8 {[%emt 0:01:59]} 28. Qf1 {[%emt 0:00:25]} Qf8 {[%emt 0:00:57]} 29. Ne5 {[%emt 0:00:41]} Qe7 {[%emt 0:00:27]} 30. Nf3 {[%emt 0:00:37]} Qf8 {[%emt 0:00:21]} 31. Bb1 {[%emt 0:00:21]} a6 {[%emt 0:00:36]} 32. Ba2 {[%emt 0:00:32]} Ne7 {[%emt 0:00:26]} 33. Bd6 {[%emt 0:00:52]} Rc6 {[%emt 0:00:32]} 34. Be5 {[%emt 0:00:29]} Bxe5 {[%emt 0:01:29]} 35. Nxe5 {[%emt 0:00:28]} Rcc8 {[%emt 0:00:22]} 36. g3 {[%emt 0:01:23]} Nc6 {[%emt 0:00:55]} 37. Nf3 {[%emt 0:01:09]} Na4 {[%emt 0:00:43]} 38. Qe2 {[%emt 0:01:08]} Qe7 {[%emt 0:00:46]} 39. Ng5 {[%emt 0:00:27]} Rxd1 {[%emt 0:01:07]} 40. Rxd1 {[%emt 0:00:22]} Rd8 {[%emt 0:00:20]} 41. Rxd8+ {[%emt 0:30:29]} Nxd8 {[%emt 0:30:21]} 42. Bb3 {[%emt 0:00:49]} Nc5 {[%emt 0:00:23]} 43. Bc2 {[%emt 0:00:23]} Nc6 {[%emt 0:00:29]} 44. Qe3 {[%emt 0:00:41]} Nd7 {[%emt 0:00:27]} 45. b4 {[%emt 0:00:31]} Nf6 {[%emt 0:00:33]} 46. Bb3 {[%emt 0:01:06]} Kg7 {[%emt 0:00:40]} 47. Qf4 {[%emt 0:01:00]} Qd7 {[%emt 0:01:12]} 48. Qe3 {[%emt 0:00:49]} Ne7 {[%emt 0:00:40]} 49. Nf3 {[%emt 0:00:46]} Ned5 {[%emt 0:00:34]} 50. Qe5 {[%emt 0:00:25]} Qc6 {[%emt 0:00:37]} 51. Nd4 {[%emt 0:01:35]} Qc7 {[%emt 0:01:09]} 52. Qxc7 {[%emt 0:01:04]} Nxc7 {[%emt 0:00:21]} 53. f3 {[%emt 0:00:29]} Nfd5 {[%emt 0:00:23]} 54. Ne2 {[%emt 0:00:22]} Kf6 {[%emt 0:00:21]} 55. Kf2 {[%emt 0:00:21]} Ke5 {[%emt 0:00:25]} 56. f4+ {[%emt 0:00:22]} Kd6 {[%emt 0:00:24]} 57. Kf3 {[%emt 0:00:25]} Nf6 {[%emt 0:00:49]} 58. c4 {[%emt 0:00:31]} e5 {[%emt 0:00:29]} 59. c5+ {[%emt 0:00:25]} Ke7 {[%emt 0:00:20]} 60. fxe5 {[%emt 0:00:21]} Nd7 {[%emt 0:00:43]} 61. Ke4 {[%emt 0:00:29]} Nb8 {[%emt 0:00:37]} 62. Nd4 {[%emt 0:01:03]} f5+ {[%emt 0:00:33]} 1-0